Cogmind - Beta 11.2 @@@ ROGUE MODE // 2023.02.25 @ 15:45:32 Player: Shin Result: Destroyed by G-34 Mercenary with Small Laser Performance ------------- Evolutions (0) 0 Regions Visited (2) 400 Robots Destroyed (24) 120 Value Destroyed (615) 615 Prototype IDs (0) 0 Alien Tech Used (0) 0 Bonus (34) 34 TOTAL SCORE: 1169 Bonus ------- High Alert Combat Kills 34 Cogmind --------- Core Integrity 0/250 Matter 292/300 Energy 265/265 System Corruption 1% Temperature Cool (6) Movement Walking (190) Ox1 Location -10/Mines Parts ------- > --- POWER (1) -------- Improved Ion Engine > --- PROPULSION (2) --- Aluminum Leg Aluminum Leg > --- UTILITY (2) ------ Large Storage Unit Structural Scanner > --- WEAPON (2) ------- Assault Rifle Mining Claw > --- INVENTORY (15) --- Light Ion Engine Light Nuclear Core Aluminum Leg Aluminum Leg Wheel Improved Heat Sink High-capacity Matter Pod (200) Targeting Computer Power Shielding Light Armor Plating Assault Rifle Assault Rifle Assault Rifle Assault Rifle Grenade Launcher Peak State ------------ > --- POWER ------------ Improved Ion Engine > --- PROPULSION ------- Aluminum Leg Aluminum Leg > --- UTILITY ---------- Large Storage Unit Structural Scanner > --- WEAPON ----------- Assault Rifle Assault Rifle > --- INVENTORY -------- Light Ion Engine Aluminum Leg Aluminum Leg Wheel Heat Sink High-capacity Matter Pod Targeting Computer Power Shielding Small Laser Assault Rifle Assault Rifle Assault Rifle Assault Rifle Grenade Launcher Mining Laser [Rating: 9] Favorites ----------- Power Ion Engine Engine Ion Engine Propulsion Aluminum Leg Treads Light Treads Leg Aluminum Leg Utility Structural Scanner Device Structural Scanner Storage Large Storage Unit Weapon Assault Rifle Energy Gun Small Laser Ballistic Gun Assault Rifle Launcher Grenade Launcher Slashing Weapon Mining Claw Build | -11 -10 -10 ------- Run | Scr Mat Min Slots Evolved . | . . . Power . | . . . Propulsion . | . . . Utility . | . . . Weapon . | . . . Parts Attached 17 | . 13 4 Power 2 | . 1 1 Engine 2 | . 1 1 Core . | . . . Reactor . | . . . Propulsion 4 | . 4 . Treads 2 | . 2 . Leg 2 | . 2 . Wheel . | . . . Hover . | . . . Flight . | . . . Utility 3 | . 3 . Device 2 | . 2 . Storage 1 | . 1 . Processor . | . . . Hackware . | . . . Protection . | . . . Artifact . | . . . Weapon 8 | . 5 3 Energy Gun 2 | . 2 . Energy Cannon . | . . . Ballistic Gun 3 | . 1 2 Ballistic Cannon . | . . . Launcher 2 | . 2 . Special Weapon . | . . . Impact Weapon . | . . . Slashing Weapon 1 | . . 1 Piercing Weapon . | . . . Special Melee Weapon . | . . . Unidentified Prototypes . | . . . Parts Lost 1 | . 1 . Power . | . . . Propulsion 1 | . 1 . Utility . | . . . Weapon . | . . . Highest Loss Streak 1 | . 1 . To Critical Strikes . | . . . Average Slot Usage (%) 98 | . 97 100 Engine 14 | . 14 14 Treads 7 | . 14 . Leg 20 | . 13 28 Device 12 | . 11 14 Storage 14 | . 14 14 Energy Gun 6 | . 12 . Ballistic Gun 19 | . 13 24 Slashing Weapon 1 | . . 3 Naked Turns . | . . . Heaviest Build 32 | 12 30 32 Greatest Support 40 | 20 40 20 Greatest Overweight (x) 1 | . 1 1 Average Overweight (x) . | . . 1 Largest Inventory Capacity 15 | 8 15 15 Average Capacity 14 | 8 13 15 Most Carried 15 | 6 15 15 Average Carried 12 | 6 10 14 Final Capacity 15 | 8 15 15 Final Carried 15 | 6 15 15 Class Distribution -------------------- 92% | Mutant 7% | Scavenger-Mutant Dominant Class ---------------- Mutant | -10/Materials Mutant | -10/Mines Resources | -11 -10 -10 ----------- Run | Scr Mat Min Matter Collected 753 | 200 212 341 Remotely . | . . . Salvage Created 699 | . 371 328 Parts 57 | . 41 16 Haulers Intercepted . | . . . Recyclers Shooed . | . . . Parts Field Recycled . | . . . Retrieved Matter . | . . . Parts Self-Destructed . | . . . Prevented . | . . . Kills | -11 -10 -10 ------- Run | Scr Mat Min Combat Hostiles Destroyed 21 | . 14 7 Melee 1 | . . 1 Guns 12 | . 6 6 AOE 8 | . 8 . Classes Destroyed 8 | . 5 3 Worker 1 | . 1 . Builder 1 | . 1 . Recycler 1 | . . 1 Watcher 1 | . 1 . Swarmer 7 | . 5 2 Grunt 11 | . 9 2 Sentry 2 | . . 2 Assembled 1 | . . 1 Best Kill Streak 8 | . 8 4 Combat Bots Only 6 | . 6 4 Max Kills in Single Turn 4 | . 4 1 Gunslinging . | . . . Exploded 3 | . 3 . Melee 1 | . . 1 Uniques/NPCs Destroyed . | . . . Combat | -11 -10 -10 -------- Run | Scr Mat Min Damage Taken 964 | . 629 335 Core 255 | . 132 123 Absorbed by Shields . | . . . Core Remaining (%) 100 | 100 . . Volleys Fired 61 | . 42 19 Largest 2 | . 2 2 Hottest 60 | . 60 40 Shots Fired 119 | . 81 38 Gun 116 | . 78 38 Cannon . | . . . Launcher 3 | . 3 . Special . | . . . Kinetic 77 | . 39 38 Thermal 39 | . 39 . Explosive 3 | . 3 . Electromagnetic . | . . . Robot Hit Streak 9 | . 9 6 Robot Miss Streak 3 | . 3 3 Penetration Max . | . . . Secondary Targets 2 | . 1 1 Max Gunslinging Chain 1 | . 1 1 Shots Hit Robots 77 | . 53 24 Core Hits 41 | . 28 13 Critical Kills . | . . . Critical Parts Destroyed 2 | . 1 1 Critical Strikes 2 | . 1 1 Destroy 2 | . 1 1 Melee Attacks 22 | . . 22 Impact . | . . . Slashing 22 | . . 22 Piercing . | . . . Sneak Attacks . | . . . Combat Hostiles . | . . . Follow-up Attacks . | . . . Damage Inflicted 1468 | . 1147 321 Guns 783 | . 492 291 Cannons . | . . . Explosions 655 | . 655 . Melee 30 | . . 30 Ramming . | . . . Kinetic 495 | . 204 291 Thermal 288 | . 288 . Explosive 655 | . 655 . Electromagnetic . | . . . Impact . | . . . Slashing 30 | . . 30 Piercing . | . . . Highest Corruption 1 | . 1 1 Average Corruption 1 | . 1 1 Corruption Purged . | . . . Corruption Blocked . | . . . Effects 7 | . 2 5 Message Errors 2 | . 1 1 Matter Fused 2 | . 1 1 Heat Flow Errors 2 | . . 2 Energy Discharges 1 | . . 1 Overload Shots . | . . . Overflow Damage 5 | . 5 . Projectiles . | . . . Explosions 5 | . 5 . Melee . | . . . Knockbacks . | . . . Impact . | . . . Kinetic . | . . . Secondary . | . . . Self-Inflicted Damage 158 | . 158 . Shots 2 | . 2 . Rammed . | . . . Targets Rammed . | . . . Kicked . | . . . Crushed . | . . . Highest Temperature 236 | . 102 236 Average Temperature 43 | . 33 75 Received Heat Transfer 300 | . 180 120 Siege Activations . | . . . Robots Corrupted . | . . . Combat Hostiles . | . . . Parts Fried . | . . . Impact Corruptions . | . . . Robots Melted . | . . . Combat Hostiles . | . . . Parts Melted . | . . . Heat Transferred 650 | . 650 . Parts Sabotaged . | . . . Parts Stolen . | . . . Parts Stripped . | . . . Power Chain Reactions . | . . . Missiles Intercepted . | . . . Alert | -11 -10 -10 ------- Run | Scr Mat Min Peak Influence 542 | . 542 277 Initial 152 | . . 152 Average 268 | . 372 168 Maximum Alert Level 2 | . 2 1 Low Security (%) 35 | 100 12 56 Level 1 42 | . 43 43 Level 2 21 | . 44 . Level 3 . | . . . Level 4 . | . . . Level 5 . | . . . High Security . | . . . Max Security . | . . . Squads Dispatched 3 | . 3 . Investigation 1 | . 1 . Extermination . | . . . Reinforcement 2 | . 2 . Assault . | . . . Garrison . | . . . Intercept . | . . . Searches Triggered . | . . . Construction Impeded . | . . . Haulers Reinforced . | . . . Active Scanning Responses . | . . . Cargo Convoy Interrupts . | . . . Stealth | -11 -10 -10 --------- Run | Scr Mat Min Distress Signals 2 | . 2 . Communications Jammed . | . . . Distress Signals . | . . . Times Spotted 33 | . 23 10 Peak Tracking Total 5 | . 5 4 Tactical Retreats 4 | . 3 1 Traps | -11 -10 -10 ------- Run | Scr Mat Min Traps Triggered 1 | . 1 . Indirectly . | . . . Trap Hack Attempts . | . . . Triggered . | . . . Disarmed . | . . . Reprogrammed . | . . . Reused . | . . . Traps Extracted . | . . . Installed . | . . . Triggered . | . . . Machines | -11 -10 -10 ---------- Run | Scr Mat Min Machines Disabled 4 | . 4 . Max in Single Turn 2 | . 2 . Machines Sabotaged . | . . . Garrisons Compromised . | . . . Overloaded Fab Kills . | . . . Hacking | -11 -10 -10 --------- Run | Scr Mat Min Machines Accessed 3 | . 3 . Terminals 2 | . 2 . Fabricators . | . . . Repair Stations 1 | . 1 . Recycling Units . | . . . Scanalyzers . | . . . Garrison Access . | . . . Total Hacks 12 | . 12 . Successful 8 | . 8 . Failed 4 | . 4 . Catastrophic 1 | . 1 . Database Lockouts . | . . . Manual . | . . . Terminals 10 | . 10 . Fabricators . | . . . Repair Stations 2 | . 2 . Recycling Units . | . . . Scanalyzers . | . . . Garrison Access . | . . . Terminal Hacks 7 | . 7 . Emergency Access Points 1 | . 1 . Locate Traps 2 | . 2 . Maintenance Status 1 | . 1 . Transport Status 1 | . 1 . Investigation Status 1 | . 1 . Zone Layout 1 | . 1 . Fabricator Hacks . | . . . Repair Station Hacks 1 | . 1 . Scan Component 1 | . 1 . Recycling Unit Hacks . | . . . Scanalyzer . | . . . Garrison Access Hacks . | . . . Unauthorized Hacks . | . . . Terminals . | . . . Fabricators . | . . . Repair Stations . | . . . Recycling Units . | . . . Scanalyzers . | . . . Garrison Access . | . . . Data Cores Recovered . | . . . Used . | . . . Hacking Detections 3 | . 3 . Full Trace Events 1 | . 1 . Feedback Events . | . . . Feedback Blocked . | . . . Robot Schematics Acquired . | . . . Robots Built . | . . . Authchips . | . . . Time . | . . . Total Robot Build Rating . | . . . Part Schematics Acquired . | . . . Parts Built . | . . . Authchips . | . . . Time . | . . . Total Part Build Rating . | . . . Parts Repaired . | . . . Time . | . . . Parts Recycled . | . . . Recycled Matter . | . . . Retrieved Matter . | . . . Retrieved Components . | . . . Parts Scanalyzed . | . . . Part Schematics Acquired . | . . . Parts Damaged . | . . . Bothacking | -11 -10 -10 ------------ Run | Scr Mat Min Used RIF Installer . | . . . Robots Hacked . | . . . Non-combat . | . . . Combat . | . . . Robot Hacks Applied . | . . . Relay Couplers Released . | . . . Fabnet Peak Effective % . | . . . Robots Rewired . | . . . Allies Hacked . | . . . Hacks Repelled . | . . . Allies | -11 -10 -10 -------- Run | Scr Mat Min Total Allies . | . . . Largest Group . | . . . Highest-Rated Group . | . . . Highest-Rated Ally . | . . . Total Orders . | . . . Ally Attacks . | . . . Total Damage . | . . . Kills . | . . . Allies Corrupted . | . . . Allies Melted . | . . . Intel | -11 -10 -10 ------- Run | Scr Mat Min Robot Analysis Total . | . . . Derelict Logs Recovered 1 | . . 1 Drone Launches . | . . . Drone Recoveries . | . . . Exploration | -11 -10 -10 ------------- Run | Scr Mat Min Turns Passed 1763 | 5 865 893 Spaces Moved 842 | 5 442 395 Core . | . . . Treads 229 | . 229 . Legs 613 | 5 213 395 Wheels . | . . . Hover . | . . . Flight . | . . . Fastest Speed 120 | 120 120 190 Average Speed 173 | 120 158 190 Slowest Speed 190 | 120 190 190 Overloaded Moves . | . . . Propulsion Burnouts . | . . . Robots Hopped . | . . . Cave-ins Triggered . | . . . Exploration Rate (%) 39 | 2 50 66 Regions Visited 2 Branch Regions 1 Pre-discovered Areas 1 | . . 1 Known Exits Taken . | . . . Unknown Exits Taken 2 | 1 1 . Scrap Searched 1 | . . 1 Spaces Dug . | . . . Terrain Destroyed 72 | . 72 . Melee . | . . . Projectile . | . . . AOE 72 | . 72 . Terrain Rammed . | . . . Walls Destroyed . | . . . Machines Disabled . | . . . Actions | -11 -10 -10 --------- Run | Scr Mat Min Total 995 | 4 534 457 Wait 14 | . 8 6 Move 840 | 4 441 395 Hop . | . . . Pick Up 25 | . 20 5 Fast Attach . | . . . Attach 6 | . 6 . Detach . | . . . Swap 11 | . 7 4 Drop 16 | . 10 6 Fire 61 | . 42 19 Melee 22 | . . 22 Ram . | . . . Kick . | . . . Crush . | . . . Escape Stasis . | . . . Rewire . | . . . Trap . | . . . Miscellaneous . | . . . Route ------- -11/Scrapyard -10/Materials (discovered 2 exits: [*Mat] / [*Min]) -10/Mines (discovered 1 exit: [*Mat]) History --------- Turn | Location | Event 1 | -11/Scrapyard | Discovered new exit (range 3) 6 | -11/Scrapyard | Entered Materials 307 | -10/Materials | Build established: Mutant 499 | -10/Materials | Discovered new exit (range 10) 595 | -10/Materials | Discovered new exit (range 8) 611 | -10/Materials | Core integrity fell below 50% 871 | -10/Materials | Entered Mines 964 | -10/Mines | Joined a pair of Derelicts in attacking an 0b10 outpost 1064 | -10/Mines | Found a hidden stash of uninstalled traps 1408 | -10/Mines | Discovered new exit (range 6) 1416 | -10/Mines | Core integrity fell below 20% 1548 | -10/Mines | Learned location of Mines (-9) 1551 | -10/Mines | Excavation squad dispatched 1551 | -10/Mines | A large section of the Mines collapsed 1764 | -10/Mines | Destroyed by G-34 Mercenary with Small Laser Last Messages --------------- 01428_ G-47 Trooper destroyed. 01431_ G-34 Mercenary destroyed. 01434_ Acquired 53 matter. 01438_ Acquired Lgt. Nuclear Core. 01442_ Dropped Heat Sink. 01443_ Acquired Imp. Heat Sink. 01450_ Acquired 37 matter. 01478_ D,&AITTTY>QTPPSL|H6:% 01548_ Acquired derelict log, extracted data. World map updated: -9/Mines. 01551_ K-01 Serf crushed by falling debris. 01551_ K-01 Serf destroyed. 01551_ ALERT: Suspicious cave-in, suspected derelict activity in mines. Dispatching escorted excavation squad. 01571_ as-27137 destroyed. 01574_ Acquired 19 matter. 01677_ Extracted 55 matter. 01695_ System corrupted: Heat flow error (+190). 01740_ System corrupted: Matter fused (-8). 01761_ T-07 Excavator is excavating. Map ----- +----------------------------------------------------+ | ?## ##?########## ###?????? | | ?## < ???## ######?????? | | ?## ????## = #####??????? | | ?## ???## ###### # ##?????????? | | ???## ####### ###### ### ???????? | | ???## ####### ##??## #### """ ???????? | | ???##[= ! = ##??## ##### """ ???????? | | ???##############??## ###### ""?????????? | | ???##############??## ##??## ""?????????? | | ??????????########?## ##???? ?????????? | | ?????????#### ###### ##???? ?????????? | | ?????????### ##### ##????? ?????????? | | ?????????## #### ##??????? ???????????? | | ?????????## ##???????????????????? | | ?????????## #######???????????????????? | | ?????????### ###########????????????????? | | ?????????##### ###########????????????????? | | ??????????#### ##????????????????? | | ???########### ##????????????????? | | ???#################### ##????????????????? | | ???## ###############????????????????? | | ???## !!! ##???????######????????????????? | | ???## ! ##???###### ###????????????????? | | ???## ! ! ##??####### #####??????????????? | | ???## !! #######;### ##??????????????? | | ???## ###### @ ## ###??????????????? | | ???## #### t ; ###??????????????? | | ???##### #### ; ; ;# g ###???????????????? | | ???##### #### #### ;####???????????????? | | ??????## #######;#####????????????????? | | ??????####################?????????????????? | | ??????##########???######??????????????????? | | ????????????????????####???????????????????? | | | | | | | | | | | | | | | | | | | | | | | | | | | | | | | | | | | +----------------------------------------------------+ Best States ------------- Heat Dissipation 25 Energy Generation 12 Energy Capacity 265 Matter Stores 300 Matter Capacity 300 Sight Range 16 Terrain Scan Density 10 Evasion (%) 55 Recoil Reduction 2 Item Schematics ----------------- None Robot Schematics ------------------ None Fabricated ------------ Nothing Alien Tech Used ----------------- None Achievements -------------- None Challenges ------------ None Game ------ Seed HeavySiegeEdition Manual? 0 Play Time 00:15:31 Cumulative 83.3 hours Start 2023.02.25 @ 15:31:23 End 2023.02.25 @ 15:45:32 Sessions 1 Manual Loads 0 Difficulty Rogue Special Mode None Game No. 69 Rogue 69 Adventurer 0 Explorer 0 Win Type - Total 0 Types 0/0/0/0/0/0/0/0/0 Lore% 45 Gallery% 55 Achievement% 39 Wizard Run 0 Options --------- ASCII 0 Keyboard 0 Movement Arrows Keybinds 1 Fullscreen 0 Font 16/Terminus Map View 76x50 Tactical HUD 1 Map Filters NONE Filters NONE Steam 1 RUN: 06ad3d05-0550-4a05-9647-3ef0b56a4e39